[Event "Titled Tuesday Blitz May 16 Early 2023"]
[White "Tang, Andrew"]
[Black "Hossain, Enamul"]
[WhiteFideId "2059630"]
[BlackFideId "10200649"]
[WhiteElo "2596"]
[BlackElo "2433"]
[Result "1-0"]
[Round "03"]
[TimeControl "180+2"]
[Date "2023.05.16"]
[WhiteClock "0:00:45"]
[BlackClock "0:00:10"]

1. d4 {[%clk 0:03:00]}  Nf6 {[%clk 0:02:54]} 2. c4 {[%clk 0:02:58]}  g6 {[%clk 0:02:54]} 3. f3 {[%clk 0:02:58]}  Bg7 {[%clk 0:02:53]} 4. e4 {[%clk 0:02:58]}  d6 {[%clk 0:02:54]} 5. Nc3 {[%clk 0:02:59]}  O-O {[%clk 0:02:53]} 6. Nge2 {[%clk 0:02:59]}  a6 {[%clk 0:02:50]} 7. Be3 {[%clk 0:02:59]}  b5 {[%clk 0:02:49]} 8. Ng3 {[%clk 0:02:59]}  c6 {[%clk 0:02:44]} 9. Qd2 {[%clk 0:02:59]}  e5 {[%clk 0:02:41]} 10. d5 {[%clk 0:02:59]}  b4 {[%clk 0:02:34]} 11. Nd1 {[%clk 0:02:58]}  cxd5 {[%clk 0:02:21]} 12. cxd5 {[%clk 0:02:59]}  a5 {[%clk 0:02:05]} 13. Nf2 {[%clk 0:02:55]}  h5 {[%clk 0:02:04]} 14. Bd3 {[%clk 0:02:53]}  Ba6 {[%clk 0:01:58]} 15. Rc1 {[%clk 0:02:50]}  Bxd3 {[%clk 0:01:49]} 16. Nxd3 {[%clk 0:02:51]}  Qd7 {[%clk 0:01:43]} 17. Bh6 {[%clk 0:02:48]}  h4 {[%clk 0:01:39]} 18. Bxg7 {[%clk 0:02:47]}  Kxg7 {[%clk 0:01:39]} 19. Nf5+ {[%clk 0:02:47]}  gxf5 {[%clk 0:01:33]} 20. Qg5+ {[%clk 0:02:47]}  Kh7 {[%clk 0:01:33]} 21. Qxf6 {[%clk 0:02:42]}  fxe4 {[%clk 0:01:22]} 22. Qxh4+ {[%clk 0:02:13]}  Kg6 {[%clk 0:01:21]} 23. fxe4 {[%clk 0:02:09]}  f5 {[%clk 0:01:03]} 24. Qg3+ {[%clk 0:02:09]}  Kh7 {[%clk 0:00:59]} 25. O-O {[%clk 0:01:55]}  f4 {[%clk 0:00:58]} 26. Qh4+ {[%clk 0:01:55]}  Kg8 {[%clk 0:00:55]} 27. g3 {[%clk 0:01:51]}  Qa7+ {[%clk 0:00:49]} 28. Kh1 {[%clk 0:01:51]}  Qe3 {[%clk 0:00:48]} 29. Qg4+ {[%clk 0:01:49]}  Kh8 {[%clk 0:00:48]} 30. gxf4 {[%clk 0:01:29]}  Qxe4+ {[%clk 0:00:44]} 31. Rf3 {[%clk 0:01:29]}  Ra7 {[%clk 0:00:42]} 32. Rg1 {[%clk 0:01:24]}  Rh7 {[%clk 0:00:33]} 33. Rg2 {[%clk 0:00:45]}  Qxd5 {[%clk 0:00:29]} 34. Rfg3 {[%clk 0:00:45]}  e4 {[%clk 0:00:17]} 35. Qg6 {[%clk 0:00:45]}  exd3 {[%clk 0:00:10]} 36. Qxh7+ {[%clk 0:00:45]} 1-0


[Site "https://www.chess.com"]

[Event "Titled Tuesday Blitz May 16 Early 2023"]
[White "Staudenhocker43"]
[Black "Bortnyk, Mykola"]
[BlackFideId "14120836"]
[WhiteElo "2530"]
[BlackElo "2582"]
[Result "0-1"]
[Round "03"]
[TimeControl "180+2"]
[Date "2023.05.16"]
[WhiteClock "0:02:17"]
[BlackClock "0:02:13"]

1. c4 {[%clk 0:03:00]}  c5 {[%clk 0:02:58]} 2. Nf3 {[%clk 0:03:00]}  Nc6 {[%clk 0:02:58]} 3. d4 {[%clk 0:03:00]}  cxd4 {[%clk 0:02:58]} 4. Nxd4 {[%clk 0:03:01]}  g6 {[%clk 0:02:53]} 5. e4 {[%clk 0:03:00]}  Bg7 {[%clk 0:02:53]} 6. Be3 {[%clk 0:03:00]}  Nf6 {[%clk 0:02:53]} 7. Nc3 {[%clk 0:03:00]}  Ng4 {[%clk 0:02:53]} 8. Qxg4 {[%clk 0:03:00]}  Nxd4 {[%clk 0:02:52]} 9. Qd1 {[%clk 0:03:01]}  Nc6 {[%clk 0:02:51]} 10. Rc1 {[%clk 0:02:59]}  d6 {[%clk 0:02:50]} 11. Be2 {[%clk 0:02:58]}  O-O {[%clk 0:02:51]} 12. O-O {[%clk 0:02:58]}  f5 {[%clk 0:02:51]} 13. exf5 {[%clk 0:02:57]}  gxf5 {[%clk 0:02:49]} 14. Qd2 {[%clk 0:02:53]}  Be6 {[%clk 0:02:46]} 15. Nd5 {[%clk 0:02:49]}  Ne5 {[%clk 0:02:38]} 16. h3 {[%clk 0:02:36]}  b6 {[%clk 0:02:37]} 17. Bh6 {[%clk 0:02:34]}  Bxh6 {[%clk 0:02:23]} 18. Qxh6 {[%clk 0:02:35]}  Bxd5 {[%clk 0:02:23]} 19. cxd5 {[%clk 0:02:34]}  Rf6 {[%clk 0:02:24]} 20. Qg5+ {[%clk 0:02:34]}  Kh8 {[%clk 0:02:22]} 21. f4 {[%clk 0:02:28]}  Nf7 {[%clk 0:02:13]} 22. Bh5 {[%clk 0:02:17]}  Nxg5 {[%clk 0:02:13]} 0-1


[Site "https://www.chess.com"]

[Event "Titled Tuesday Blitz May 16 Early 2023"]
[White "Bagwe Gaurang"]
[Black "Mekhitarian, Krikor Sevag"]
[WhiteFideId "45039895"]
[BlackFideId "2107660"]
[WhiteElo "1847"]
[BlackElo "2604"]
[Result "0-1"]
[Round "03"]
[TimeControl "180+2"]
[Date "2023.05.16"]
[WhiteClock "0:00:02"]
[BlackClock "0:00:09"]

1. e4 {[%clk 0:03:00]}  e6 {[%clk 0:02:59]} 2. d4 {[%clk 0:02:56]}  d5 {[%clk 0:02:59]} 3. Nd2 {[%clk 0:02:57]}  c5 {[%clk 0:02:58]} 4. Ngf3 {[%clk 0:02:57]}  cxd4 {[%clk 0:02:57]} 5. Nxd4 {[%clk 0:02:56]}  Nf6 {[%clk 0:02:56]} 6. exd5 {[%clk 0:02:46]}  Nxd5 {[%clk 0:02:57]} 7. N2f3 {[%clk 0:02:42]}  Be7 {[%clk 0:02:55]} 8. Bd3 {[%clk 0:02:40]}  Nb4 {[%clk 0:02:53]} 9. Bb5+ {[%clk 0:02:28]}  Bd7 {[%clk 0:02:53]} 10. Qe2 {[%clk 0:02:14]}  O-O {[%clk 0:02:43]} 11. O-O {[%clk 0:02:13]}  a6 {[%clk 0:02:31]} 12. Bc4 {[%clk 0:02:08]}  N8c6 {[%clk 0:02:28]} 13. Rd1 {[%clk 0:02:08]}  Qc7 {[%clk 0:02:22]} 14. Be3 {[%clk 0:01:55]}  Nxd4 {[%clk 0:02:17]} 15. Bxd4 {[%clk 0:01:55]}  Rac8 {[%clk 0:02:13]} 16. Ne5 {[%clk 0:01:39]}  Be8 {[%clk 0:02:06]} 17. c3 {[%clk 0:01:31]}  Nd5 {[%clk 0:01:45]} 18. Bd3 {[%clk 0:01:12]}  Nf6 {[%clk 0:00:55]} 19. Bc2 {[%clk 0:01:08]}  Bc5 {[%clk 0:00:54]} 20. Bxc5 {[%clk 0:01:05]}  Qxc5 {[%clk 0:00:54]} 21. Rd4 {[%clk 0:01:05]}  Bb5 {[%clk 0:00:52]} 22. Qe3 {[%clk 0:01:02]}  Qc7 {[%clk 0:00:41]} 23. a4 {[%clk 0:01:01]}  Bc6 {[%clk 0:00:38]} 24. Rad1 {[%clk 0:00:48]}  Rcd8 {[%clk 0:00:39]} 25. Nxc6 {[%clk 0:00:35]}  bxc6 {[%clk 0:00:34]} 26. Rxd8 {[%clk 0:00:35]}  Rxd8 {[%clk 0:00:35]} 27. Rxd8+ {[%clk 0:00:34]}  Qxd8 {[%clk 0:00:36]} 28. Qd3 {[%clk 0:00:35]}  Qb6 {[%clk 0:00:24]} 29. b4 {[%clk 0:00:35]}  a5 {[%clk 0:00:20]} 30. b5 {[%clk 0:00:31]}  cxb5 {[%clk 0:00:18]} 31. Qxb5 {[%clk 0:00:30]}  Qc7 {[%clk 0:00:12]} 32. c4 {[%clk 0:00:27]}  g6 {[%clk 0:00:10]} 33. h3 {[%clk 0:00:25]}  Nd7 {[%clk 0:00:10]} 34. Be4 {[%clk 0:00:21]}  Nc5 {[%clk 0:00:10]} 35. Bf3 {[%clk 0:00:21]}  Kg7 {[%clk 0:00:09]} 36. Qc6 {[%clk 0:00:20]}  Qxc6 {[%clk 0:00:09]} 37. Bxc6 {[%clk 0:00:21]}  Kf6 {[%clk 0:00:09]} 38. Kf1 {[%clk 0:00:21]}  Ke5 {[%clk 0:00:10]} 39. Ke2 {[%clk 0:00:21]}  Kd4 {[%clk 0:00:10]} 40. Bb5 {[%clk 0:00:21]}  f5 {[%clk 0:00:08]} 41. g4 {[%clk 0:00:21]}  f4 {[%clk 0:00:06]} 42. g5 {[%clk 0:00:21]}  Ne4 {[%clk 0:00:06]} 43. h4 {[%clk 0:00:20]}  e5 {[%clk 0:00:06]} 44. Kf3 {[%clk 0:00:19]}  Nd2+ {[%clk 0:00:06]} 45. Kg4 {[%clk 0:00:20]}  Nxc4 {[%clk 0:00:07]} 46. Bxc4 {[%clk 0:00:18]}  Kxc4 {[%clk 0:00:07]} 47. h5 {[%clk 0:00:19]}  Kd4 {[%clk 0:00:07]} 48. f3 {[%clk 0:00:16]}  Kd3 {[%clk 0:00:07]} 49. h6 {[%clk 0:00:03]}  Ke3 {[%clk 0:00:07]} 50. Kh3 {[%clk 0:00:02]}  Kxf3 {[%clk 0:00:07]} 51. Kh4 {[%clk 0:00:03]}  e4 {[%clk 0:00:08]} 52. Kh3 {[%clk 0:00:01]}  e3 {[%clk 0:00:08]} 53. Kh2 {[%clk 0:00:02]}  e2 {[%clk 0:00:09]} 54. Kg1 {[%clk 0:00:03]}  e1=Q+ {[%clk 0:00:09]} 55. Kh2 {[%clk 0:00:02]}  Qg3+ {[%clk 0:00:09]} 0-1


[Site "https://www.chess.com"]

[Event "Titled Tuesday Blitz May 16 Early 2023"]
[White "Gonzalez, Francisco Silva"]
[Black "Mikhailovsky, Vladimir"]
[WhiteFideId "1512285"]
[BlackFideId "34105414"]
[WhiteElo "2074"]
[BlackElo "2271"]
[Result "0-1"]
[Round "03"]
[TimeControl "180+2"]
[Date "2023.05.16"]
[WhiteClock "0:00:00"]
[BlackClock "0:00:07"]

1. d4 {[%clk 0:02:53]}  Nf6 {[%clk 0:02:58]} 2. c4 {[%clk 0:02:50]}  e6 {[%clk 0:02:58]} 3. Nc3 {[%clk 0:02:50]}  d5 {[%clk 0:02:55]} 4. Bg5 {[%clk 0:02:48]}  dxc4 {[%clk 0:02:54]} 5. e3 {[%clk 0:02:47]}  a6 {[%clk 0:02:50]} 6. Bxc4 {[%clk 0:02:41]}  b5 {[%clk 0:02:50]} 7. Bb3 {[%clk 0:02:41]}  Bb7 {[%clk 0:02:50]} 8. Nf3 {[%clk 0:02:41]}  Be7 {[%clk 0:02:49]} 9. O-O {[%clk 0:02:41]}  O-O {[%clk 0:02:49]} 10. Qe2 {[%clk 0:02:40]}  c5 {[%clk 0:02:48]} 11. a4 {[%clk 0:02:40]}  c4 {[%clk 0:02:40]} 12. Bc2 {[%clk 0:02:39]}  Qb6 {[%clk 0:02:40]} 13. axb5 {[%clk 0:02:36]}  axb5 {[%clk 0:02:39]} 14. Ne5 {[%clk 0:02:35]}  h6 {[%clk 0:02:17]} 15. Bh4 {[%clk 0:02:25]}  Rd8 {[%clk 0:01:43]} 16. Bxf6 {[%clk 0:02:13]}  Bxf6 {[%clk 0:01:43]} 17. Qh5 {[%clk 0:02:13]}  Bxe5 {[%clk 0:01:21]} 18. Qxe5 {[%clk 0:02:09]}  b4 {[%clk 0:01:14]} 19. Ne4 {[%clk 0:01:33]}  b3 {[%clk 0:00:30]} 20. Rxa8 {[%clk 0:01:30]}  Bxa8 {[%clk 0:00:31]} 21. Bb1 {[%clk 0:01:27]}  Nd7 {[%clk 0:00:31]} 22. Qf4 {[%clk 0:00:48]}  Bxe4 {[%clk 0:00:30]} 23. Bxe4 {[%clk 0:00:46]}  Nf6 {[%clk 0:00:31]} 24. Rc1 {[%clk 0:00:43]}  Qa5 {[%clk 0:00:14]} 25. Qf3 {[%clk 0:00:26]}  Qd2 {[%clk 0:00:13]} 26. Rb1 {[%clk 0:00:27]}  c3 {[%clk 0:00:10]} 27. bxc3 {[%clk 0:00:25]}  Qxc3 {[%clk 0:00:11]} 28. g3 {[%clk 0:00:20]}  b2 {[%clk 0:00:09]} 29. Kg2 {[%clk 0:00:20]}  Rb8 {[%clk 0:00:05]} 30. h4 {[%clk 0:00:19]}  Qd2 {[%clk 0:00:05]} 31. g4 {[%clk 0:00:17]}  Nxe4 {[%clk 0:00:02]} 32. Qxe4 {[%clk 0:00:17]}  Qc1 {[%clk 0:00:03]} 33. g5 {[%clk 0:00:15]}  hxg5 {[%clk 0:00:02]} 34. hxg5 {[%clk 0:00:15]}  Rb5 {[%clk 0:00:03]} 35. g6 {[%clk 0:00:16]}  Rg5+ {[%clk 0:00:02]} 36. Kf3 {[%clk 0:00:16]}  Rxg6 {[%clk 0:00:03]} 37. Qa8+ {[%clk 0:00:14]}  Kh7 {[%clk 0:00:03]} 38. Qe4 {[%clk 0:00:15]}  Kg8 {[%clk 0:00:03]} 39. Qa8+ {[%clk 0:00:14]}  Kh7 {[%clk 0:00:04]} 40. Qe4 {[%clk 0:00:15]}  f5 {[%clk 0:00:04]} 41. Qd3 {[%clk 0:00:14]}  Rg4 {[%clk 0:00:03]} 42. d5 {[%clk 0:00:13]}  Qc8 {[%clk 0:00:02]} 43. dxe6 {[%clk 0:00:12]}  Qxe6 {[%clk 0:00:03]} 44. Rxb2 {[%clk 0:00:12]}  Qg6 {[%clk 0:00:02]} 45. Rb5 {[%clk 0:00:12]}  Re4 {[%clk 0:00:02]} 46. Ke2 {[%clk 0:00:11]}  Qg4+ {[%clk 0:00:02]} 47. Kd2 {[%clk 0:00:12]}  Qg6 {[%clk 0:00:02]} 48. Rd5 {[%clk 0:00:10]}  Qe6 {[%clk 0:00:01]} 49. Rd6 {[%clk 0:00:10]}  Qe5 {[%clk 0:00:01]} 50. Rd5 {[%clk 0:00:10]}  Qb2+ {[%clk 0:00:02]} 51. Ke1 {[%clk 0:00:11]}  Kg6 {[%clk 0:00:01]} 52. Rd6+ {[%clk 0:00:09]}  Kh7 {[%clk 0:00:02]} 53. Rd5 {[%clk 0:00:09]}  Qf6 {[%clk 0:00:02]} 54. Rd6 {[%clk 0:00:08]}  Qg5 {[%clk 0:00:02]} 55. Rd5 {[%clk 0:00:09]}  Qg4 {[%clk 0:00:03]} 56. Rd6 {[%clk 0:00:08]}  Qg1+ {[%clk 0:00:03]} 57. Ke2 {[%clk 0:00:08]}  Qg4+ {[%clk 0:00:04]} 58. Ke1 {[%clk 0:00:08]}  Re5 {[%clk 0:00:04]} 59. Rd5 {[%clk 0:00:08]}  Qg1+ {[%clk 0:00:05]} 60. Ke2 {[%clk 0:00:06]}  Qg4+ {[%clk 0:00:05]} 61. Ke1 {[%clk 0:00:07]}  Qb4+ {[%clk 0:00:06]} 62. Ke2 {[%clk 0:00:06]}  Qb2+ {[%clk 0:00:06]} 63. Ke1 {[%clk 0:00:06]}  Qa1+ {[%clk 0:00:05]} 64. Ke2 {[%clk 0:00:06]}  Qa2+ {[%clk 0:00:06]} 65. Kf3 {[%clk 0:00:02]}  Qxd5+ {[%clk 0:00:07]} 66. e4 {[%clk 0:00:00]}  Qxd3+ {[%clk 0:00:07]} 0-1


[Site "https://www.chess.com"]

[Event "Titled Tuesday Blitz May 16 Early 2023"]
[White "Salinas Herrera, Pablo"]
[Black "Ginzburg, Yakov"]
[WhiteFideId "3407128"]
[BlackFideId "4157176"]
[WhiteElo "2546"]
[BlackElo "2305"]
[Result "1-0"]
[Round "03"]
[TimeControl "180+2"]
[Date "2023.05.16"]
[WhiteClock "0:00:52"]
[BlackClock "0:00:00"]

1. d4 {[%clk 0:03:00]}  d5 {[%clk 0:02:57]} 2. Nf3 {[%clk 0:03:00]}  Nf6 {[%clk 0:02:56]} 3. c4 {[%clk 0:03:00]}  c6 {[%clk 0:02:55]} 4. Nbd2 {[%clk 0:03:00]}  b5 {[%clk 0:02:54]} 5. cxb5 {[%clk 0:02:58]}  cxb5 {[%clk 0:02:54]} 6. a4 {[%clk 0:02:59]}  b4 {[%clk 0:02:52]} 7. a5 {[%clk 0:02:59]}  e6 {[%clk 0:02:49]} 8. e3 {[%clk 0:02:57]}  Ba6 {[%clk 0:02:37]} 9. Bxa6 {[%clk 0:02:56]}  Nxa6 {[%clk 0:02:37]} 10. Ne5 {[%clk 0:02:55]}  Bd6 {[%clk 0:02:24]} 11. Qa4+ {[%clk 0:02:55]}  Nd7 {[%clk 0:02:21]} 12. Ndf3 {[%clk 0:02:52]}  Rc8 {[%clk 0:01:59]} 13. Bd2 {[%clk 0:02:22]}  f6 {[%clk 0:01:46]} 14. Nc6 {[%clk 0:01:55]}  Qc7 {[%clk 0:01:45]} 15. Rc1 {[%clk 0:01:56]}  Nab8 {[%clk 0:01:45]} 16. Nxb8 {[%clk 0:01:55]}  Qxb8 {[%clk 0:01:45]} 17. O-O {[%clk 0:01:50]}  Ke7 {[%clk 0:01:40]} 18. h3 {[%clk 0:01:47]}  a6 {[%clk 0:01:39]} 19. b3 {[%clk 0:01:38]}  Qb7 {[%clk 0:01:05]} 20. Rfd1 {[%clk 0:01:34]}  Nb8 {[%clk 0:00:49]} 21. Ne1 {[%clk 0:01:33]}  Qb5 {[%clk 0:00:40]} 22. Qxb5 {[%clk 0:01:33]}  axb5 {[%clk 0:00:40]} 23. Nd3 {[%clk 0:01:34]}  Na6 {[%clk 0:00:40]} 24. f3 {[%clk 0:01:26]}  e5 {[%clk 0:00:34]} 25. dxe5 {[%clk 0:01:26]}  fxe5 {[%clk 0:00:34]} 26. e4 {[%clk 0:01:26]}  d4 {[%clk 0:00:27]} 27. g3 {[%clk 0:01:15]}  Rc7 {[%clk 0:00:18]} 28. Rxc7+ {[%clk 0:01:13]}  Nxc7 {[%clk 0:00:08]} 29. Nxb4 {[%clk 0:01:12]}  Bxb4 {[%clk 0:00:07]} 30. Bxb4+ {[%clk 0:01:13]}  Kd7 {[%clk 0:00:07]} 31. Rc1 {[%clk 0:01:14]}  Na6 {[%clk 0:00:07]} 32. Bd2 {[%clk 0:01:13]}  Rc8 {[%clk 0:00:07]} 33. Rxc8 {[%clk 0:01:13]}  Kxc8 {[%clk 0:00:07]} 34. b4 {[%clk 0:01:13]}  Kd7 {[%clk 0:00:07]} 35. f4 {[%clk 0:01:13]}  Ke6 {[%clk 0:00:07]} 36. Kf2 {[%clk 0:01:14]}  Nc7 {[%clk 0:00:07]} 37. Ke2 {[%clk 0:01:04]}  g6 {[%clk 0:00:07]} 38. Kd3 {[%clk 0:01:04]}  h6 {[%clk 0:00:03]} 39. fxe5 {[%clk 0:01:04]}  g5 {[%clk 0:00:04]} 40. Kxd4 {[%clk 0:01:05]}  Na6 {[%clk 0:00:03]} 41. g4 {[%clk 0:00:53]}  Nb8 {[%clk 0:00:03]} 42. Kc5 {[%clk 0:00:53]}  Nd7+ {[%clk 0:00:04]} 43. Kxb5 {[%clk 0:00:52]}  Nxe5 {[%clk 0:00:00]} 44. a6 {[%clk 0:00:52]} 1-0


[Site "https://www.chess.com"]

[Event "Titled Tuesday Blitz May 16 Early 2023"]
[White "Tokman, Ariel"]
[Black "Bjerre, Jonas Buhl"]
[WhiteFideId "117420"]
[BlackFideId "1444948"]
[WhiteElo "2263"]
[BlackElo "2525"]
[Result "0-1"]
[Round "03"]
[TimeControl "180+2"]
[Date "2023.05.16"]
[WhiteClock "0:00:00"]
[BlackClock "0:00:56"]

1. e4 {[%clk 0:02:56]}  c5 {[%clk 0:02:59]} 2. Nf3 {[%clk 0:02:56]}  d6 {[%clk 0:03:00]} 3. c3 {[%clk 0:02:53]}  Nf6 {[%clk 0:03:00]} 4. Bd3 {[%clk 0:02:53]}  g6 {[%clk 0:02:59]} 5. h3 {[%clk 0:02:53]}  Bg7 {[%clk 0:02:59]} 6. O-O {[%clk 0:02:53]}  O-O {[%clk 0:02:59]} 7. Re1 {[%clk 0:02:53]}  Nc6 {[%clk 0:02:58]} 8. Bf1 {[%clk 0:02:51]}  e5 {[%clk 0:02:59]} 9. a4 {[%clk 0:02:51]}  Re8 {[%clk 0:02:56]} 10. Na3 {[%clk 0:02:50]}  Be6 {[%clk 0:02:51]} 11. d3 {[%clk 0:02:47]}  h6 {[%clk 0:02:49]} 12. Nc4 {[%clk 0:02:44]}  Qc7 {[%clk 0:02:45]} 13. Ne3 {[%clk 0:02:27]}  d5 {[%clk 0:02:40]} 14. c4 {[%clk 0:02:04]}  dxe4 {[%clk 0:02:38]} 15. dxe4 {[%clk 0:02:04]}  Nd4 {[%clk 0:01:40]} 16. Nd5 {[%clk 0:02:00]}  Nxd5 {[%clk 0:01:38]} 17. cxd5 {[%clk 0:01:37]}  Bd7 {[%clk 0:01:38]} 18. Nd2 {[%clk 0:01:25]}  f5 {[%clk 0:01:29]} 19. Bc4 {[%clk 0:01:11]}  Kh8 {[%clk 0:01:27]} 20. Nf3 {[%clk 0:00:48]}  Qd6 {[%clk 0:01:15]} 21. b3 {[%clk 0:00:26]}  b6 {[%clk 0:01:11]} 22. Bb2 {[%clk 0:00:25]}  fxe4 {[%clk 0:01:11]} 23. Rxe4 {[%clk 0:00:20]}  Bf5 {[%clk 0:01:11]} 24. Re1 {[%clk 0:00:09]}  Nc2 {[%clk 0:01:07]} 25. Nh4 {[%clk 0:00:09]}  Nxe1 {[%clk 0:01:03]} 26. Nxf5 {[%clk 0:00:07]}  gxf5 {[%clk 0:01:02]} 27. Qxe1 {[%clk 0:00:06]}  e4 {[%clk 0:01:02]} 28. Bxg7+ {[%clk 0:00:04]}  Kxg7 {[%clk 0:01:03]} 29. a5 {[%clk 0:00:02]}  Kh7 {[%clk 0:00:58]} 30. Bb5 {[%clk 0:00:00]}  Rg8 {[%clk 0:00:56]} 0-1


[Site "https://www.chess.com"]

[Event "Titled Tuesday Blitz May 16 Early 2023"]
[White "Hambleton, Aman"]
[Black "KorolDimitriy75"]
[WhiteFideId "2606577"]
[WhiteElo "2511"]
[BlackElo "2523"]
[Result "1-0"]
[Round "03"]
[TimeControl "180+2"]
[Date "2023.05.16"]
[WhiteClock "0:00:03"]
[BlackClock "0:00:00"]

1. d4 {[%clk 0:03:00]}  Nf6 {[%clk 0:02:59]} 2. c4 {[%clk 0:03:00]}  c5 {[%clk 0:02:59]} 3. d5 {[%clk 0:03:01]}  b5 {[%clk 0:02:59]} 4. cxb5 {[%clk 0:03:02]}  a6 {[%clk 0:03:00]} 5. bxa6 {[%clk 0:03:03]}  g6 {[%clk 0:02:59]} 6. Nc3 {[%clk 0:03:03]}  Bxa6 {[%clk 0:03:00]} 7. e4 {[%clk 0:03:04]}  Bxf1 {[%clk 0:03:01]} 8. Kxf1 {[%clk 0:03:04]}  d6 {[%clk 0:03:01]} 9. g3 {[%clk 0:03:05]}  Bg7 {[%clk 0:03:01]} 10. Kg2 {[%clk 0:03:06]}  O-O {[%clk 0:03:02]} 11. Nge2 {[%clk 0:03:06]}  Nbd7 {[%clk 0:03:03]} 12. h3 {[%clk 0:03:07]}  Ra6 {[%clk 0:03:02]} 13. Qc2 {[%clk 0:03:07]}  Qa8 {[%clk 0:03:01]} 14. Rd1 {[%clk 0:03:08]}  Nb6 {[%clk 0:03:01]} 15. Rb1 {[%clk 0:02:15]}  Na4 {[%clk 0:02:35]} 16. b3 {[%clk 0:01:35]}  Nxc3 {[%clk 0:02:31]} 17. Nxc3 {[%clk 0:01:36]}  Rb8 {[%clk 0:02:25]} 18. a4 {[%clk 0:01:31]}  Ne8 {[%clk 0:02:07]} 19. Nb5 {[%clk 0:01:19]}  Rb7 {[%clk 0:01:21]} 20. Bd2 {[%clk 0:00:26]}  Nc7 {[%clk 0:01:02]} 21. Na3 {[%clk 0:00:26]}  Qa7 {[%clk 0:00:35]} 22. h4 {[%clk 0:00:21]}  h5 {[%clk 0:00:34]} 23. Nc4 {[%clk 0:00:20]}  Na8 {[%clk 0:00:28]} 24. Qd3 {[%clk 0:00:16]}  Nb6 {[%clk 0:00:28]} 25. Na3 {[%clk 0:00:13]}  Na8 {[%clk 0:00:15]} 26. Nb5 {[%clk 0:00:12]}  Qb8 {[%clk 0:00:13]} 27. Bc3 {[%clk 0:00:02]}  Bxc3 {[%clk 0:00:13]} 28. Qxc3 {[%clk 0:00:02]}  Nc7 {[%clk 0:00:10]} 29. Na3 {[%clk 0:00:02]}  Rab6 {[%clk 0:00:10]} 30. Rd3 {[%clk 0:00:03]}  Rb4 {[%clk 0:00:10]} 31. Nc4 {[%clk 0:00:03]}  Rxa4 {[%clk 0:00:00]} 32. Na5 {[%clk 0:00:03]} 1-0


[Site "https://www.chess.com"]

[Event "Titled Tuesday Blitz May 16 Early 2023"]
[White "Hayrapetyan, Hovik"]
[Black "Dino_Ballecer"]
[WhiteFideId "13302639"]
[WhiteElo "2348"]
[BlackElo "2517"]
[Result "1-0"]
[Round "03"]
[TimeControl "180+2"]
[Date "2023.05.16"]
[WhiteClock "0:00:48"]
[BlackClock "0:00:03"]

1. d4 {[%clk 0:03:00]}  Nf6 {[%clk 0:02:59]} 2. c4 {[%clk 0:03:01]}  c5 {[%clk 0:02:59]} 3. d5 {[%clk 0:03:01]}  e6 {[%clk 0:02:59]} 4. Nc3 {[%clk 0:03:00]}  exd5 {[%clk 0:03:00]} 5. cxd5 {[%clk 0:03:01]}  d6 {[%clk 0:03:01]} 6. e4 {[%clk 0:03:02]}  g6 {[%clk 0:03:02]} 7. f4 {[%clk 0:03:02]}  Bg7 {[%clk 0:03:02]} 8. Bb5+ {[%clk 0:03:03]}  Nbd7 {[%clk 0:03:03]} 9. e5 {[%clk 0:03:01]}  dxe5 {[%clk 0:03:03]} 10. fxe5 {[%clk 0:03:02]}  Nh5 {[%clk 0:03:04]} 11. e6 {[%clk 0:03:01]}  Qh4+ {[%clk 0:03:03]} 12. g3 {[%clk 0:02:58]}  Nxg3 {[%clk 0:03:04]} 13. hxg3 {[%clk 0:02:25]}  Qxh1 {[%clk 0:03:05]} 14. Be3 {[%clk 0:02:25]}  Bxc3+ {[%clk 0:02:55]} 15. bxc3 {[%clk 0:02:25]}  Qe4 {[%clk 0:02:55]} 16. Qf3 {[%clk 0:02:15]}  Qxf3 {[%clk 0:01:16]} 17. Nxf3 {[%clk 0:02:16]}  fxe6 {[%clk 0:01:15]} 18. dxe6 {[%clk 0:02:16]}  Ke7 {[%clk 0:01:11]} 19. exd7 {[%clk 0:02:14]}  Bxd7 {[%clk 0:01:11]} 20. Bxc5+ {[%clk 0:02:07]}  Ke8 {[%clk 0:01:11]} 21. Bc4 {[%clk 0:01:20]}  Rc8 {[%clk 0:01:11]} 22. Bd4 {[%clk 0:01:20]}  Rf8 {[%clk 0:01:07]} 23. Ne5 {[%clk 0:01:20]}  Rf5 {[%clk 0:00:51]} 24. Bd3 {[%clk 0:01:14]}  Rh5 {[%clk 0:00:47]} 25. O-O-O {[%clk 0:01:08]}  Be6 {[%clk 0:00:20]} 26. Nxg6 {[%clk 0:00:47]}  hxg6 {[%clk 0:00:18]} 27. Bxg6+ {[%clk 0:00:48]}  Bf7 {[%clk 0:00:18]} 28. Re1+ {[%clk 0:00:48]}  Kf8 {[%clk 0:00:10]} 29. Rf1 {[%clk 0:00:48]}  Rh1 {[%clk 0:00:03]} 30. Rxh1 {[%clk 0:00:48]} 1-0


[Site "https://www.chess.com"]